bitfinex/quotes_BTCUSD_20250204
["timestamp","ask_amount","ask_price","bid_price","bid_amount"]
[1738682670700,0.008,98852.0,98851.0,0.08123188]
[1738682670938,0.01,98877.0,98852.0,0.202322]
[1738682671287,0.01,98870.0,98863.0,0.151724]
[1738682671380,0.01,98862.0,98860.0,0.151729]
[1738682671628,0.01,98861.0,98860.0,0.151729]
[1738682671872,0.01,98867.0,98861.0,0.202304]
[1738682672116,0.01,98861.0,98860.0,0.000468]
[1738682672368,0.01,98846.0,98845.0,0.151752]
[1738682672605,0.018,98854.0,98853.0,0.15174]
[1738682672853,0.20223,98898.0,98853.0,0.15174]
[1738682672854,0.0573,98878.0,98877.0,0.151703]
[1738682673105,0.008,98897.0,98877.0,0.10299336]
[1738682673339,0.01,98900.0,98894.0,0.151677]
[1738682673579,0.01,98938.0,98894.0,0.151677]
[1738682673822,2.56762679,98895.0,98894.0,0.33725042]
[1738682674064,1.88182351,98895.0,98894.0,0.43902784]
[1738682674295,1.73487519,98895.0,98894.0,0.43902784]
[1738682674531,1.61881782,98895.0,98894.0,0.43902784]
[1738682674753,1.59257315,98895.0,98894.0,0.43902784]
[1738682674990,1.46012332,98895.0,98894.0,0.47019864]
[1738682675216,1.45961637,98895.0,98894.0,0.47019864]
[1738682675455,1.45961637,98895.0,98894.0,0.43902784]
[1738682675915,1.35850137,98895.0,98894.0,0.43902784]
[1738682676131,1.35699654,98895.0,98894.0,0.45775742]
[1738682676360,1.22894333,98895.0,98894.0,0.45775742]
[1738682676589,0.12236258,98895.0,98894.0,0.45775742]
[1738682676810,1e-06,98922.0,98921.0,0.303636]
[1738682677029,5e-07,98922.0,98921.0,0.40602106]
[1738682677249,5e-07,98922.0,98921.0,0.42702106]
[1738682677458,5e-07,98922.0,98921.0,0.40602106]
[1738682677673,5e-07,98922.0,98921.0,0.42902106]
[1738682677894,5e-07,98922.0,98921.0,0.43901364]
[1738682678319,5e-07,98922.0,98921.0,0.45773759]
[1738682679452,5e-07,98922.0,98921.0,0.43901364]
[1738682681358,5e-07,98922.0,98921.0,0.47012381]
[1738682681580,5e-07,98922.0,98921.0,0.48879215]
[1738682681791,5e-07,98922.0,98921.0,0.28468198]
[1738682681996,0.06223238,98972.0,98929.0,0.002]
[1738682682206,1.5,98967.0,98965.0,0.151568]
[1738682682422,0.01,98946.0,98909.0,0.202205]
[1738682682664,0.01,98937.0,98936.0,0.151613]
[1738682682894,0.01,98955.0,98936.0,0.10238506]
[1738682683112,0.01,98933.0,98904.0,0.08123188]
[1738682683323,1.5,98949.0,98905.0,0.00060687]
[1738682683554,1.5,98949.0,98947.0,0.151595]
[1738682683762,0.0778,98961.0,98947.0,0.151595]
[1738682683763,0.0778,98961.0,98955.0,0.151584]
[1738682683975,0.0778,98961.0,98960.0,0.151576]
[1738682684193,0.0778,98961.0,98960.0,0.25396106]
[1738682685256,0.07794074,98961.0,98960.0,0.10238506]
[1738682685479,0.07794074,98961.0,98960.0,0.25396106]
[1738682686593,0.01,98950.0,98916.0,0.151643]
[1738682686808,0.01,98941.0,98940.0,0.151606]
[1738682687019,0.01,98945.0,98937.0,0.151611]
[1738682687231,0.01,98945.0,98938.0,0.15161]
[1738682687443,0.01,98951.0,98939.0,0.10238506]
[1738682687655,0.01,98941.0,98915.0,0.28342488]
[1738682687862,0.01,98941.0,98925.0,0.08123188]
[1738682688099,0.0495,98953.0,98928.0,0.404334]
[1738682688358,0.01,98951.0,98950.0,0.151591]
[1738682688848,0.01,98936.0,98929.0,0.01864898]
[1738682689091,0.01,98931.0,98929.0,0.17027098]
[1738682689314,0.0769,98938.0,98916.0,0.202191]
[1738682689315,0.01,98921.0,98916.0,0.202191]
[1738682689525,0.046,98930.0,98929.0,0.151623]
[1738682689762,0.046,98930.0,98929.0,0.25400806]
[1738682690950,0.0471,98958.0,98957.0,0.15158]
[1738682691169,0.0471,98958.0,98957.0,0.25396506]
[1738682691438,0.00014074,98961.0,98960.0,0.151576]
[1738682691689,0.0756072,98976.0,98975.0,0.151553]
[1738682691690,0.05685514,98976.0,98975.0,0.151553]
[1738682691949,0.05685514,98976.0,98975.0,0.25393806]
[1738682692612,0.01,98974.0,98969.0,0.151561]
[1738682692833,0.06685514,98976.0,98949.0,0.10238506]
[1738682693059,0.05685514,98976.0,98973.0,0.151556]
[1738682693284,0.05685514,98976.0,98975.0,0.151553]
[1738682693499,0.05685514,98976.0,98975.0,0.25393806]
[1738682693928,0.01,98966.0,98936.0,0.09091416]
[1738682694185,0.01,98957.0,98950.0,0.00014074]
[1738682694398,0.01,98957.0,98950.0,0.15173174]
[1738682694399,0.01,98951.0,98950.0,0.15173174]
[1738682694611,0.008,98957.0,98950.0,0.15173174]
[1738682694612,1.51,98956.0,98950.0,0.00014074]
[1738682694821,0.01,98955.0,98951.0,0.30450506]
[1738682695029,0.008,98957.0,98955.0,0.151584]
[1738682695239,0.01,98971.0,98957.0,0.202107]
[1738682695450,0.05685514,98976.0,98974.0,0.151554]
[1738682695659,0.05685514,98976.0,98975.0,0.10238506]
[1738682696172,0.01,98967.0,98910.0,0.31612694]
[1738682696423,0.01,98967.0,98882.0,0.18787188]
[1738682696424,0.01,98957.0,98956.0,0.151582]
[1738682696689,0.01,98951.0,98950.0,0.15173174]
[1738682696892,0.01,98953.0,98952.0,0.151588]
[1738682697109,0.008,98959.0,98952.0,0.10238506]
[1738682697316,0.008,98956.0,98955.0,0.151584]
[1738682697527,0.008,98956.0,98955.0,0.25396906]
[1738682697735,0.01,98960.0,98958.0,0.151579]
[1738682697736,0.008,98959.0,98958.0,0.151579]
[1738682697980,0.01,98951.0,98910.0,0.31612694]
[1738682698171,0.0675,98951.0,98892.0,0.08323188]
[1738682698376,0.1434,98951.0,98927.0,0.202168]
[1738682698587,0.1434,98951.0,98946.0,0.151596]
[1738682698794,0.1434,98951.0,98940.0,0.202142]
[1738682699000,0.1254,98951.0,98929.0,0.00022428]
[1738682699212,0.1354,98951.0,98950.0,0.15173174]
[1738682699421,0.1434,98951.0,98950.0,0.00014074]
[1738682700493,0.018,98930.0,98885.0,0.00963156]
[1738682700702,0.169645,98915.0,98892.0,0.28347188]
[1738682700918,0.018,98915.0,98909.0,0.151653]
[1738682701136,0.018,98905.0,98903.0,0.202217]
[1738682701344,0.01,98909.0,98905.0,0.202214]
[1738682701630,0.01,98929.0,98926.0,0.151628]
[1738682702147,0.0482,98930.0,98928.0,0.151625]
[1738682702149,0.0482,98930.0,98928.0,0.25401006]
[1738682702382,0.01,98917.0,98916.0,0.151643]
[1738682702620,0.0482,98930.0,98928.0,0.151625]
[1738682702863,0.008,98955.0,98929.0,0.1029917]
[1738682703107,0.01,98972.0,98964.0,0.15157]
[1738682703382,0.01,98972.0,98929.0,0.00060664]
[1738682703383,0.08123188,98975.0,98974.0,0.151554]
[1738682703631,0.01,98980.0,98979.0,0.151547]
[1738682703845,0.01,98959.0,98958.0,0.151579]
[1738682704064,0.01,98968.0,98967.0,0.151565]
[1738682704285,0.018,98979.0,98978.0,0.151548]
[1738682704511,0.018,98979.0,98978.0,0.25393306]
[1738682704734,0.01,98979.0,98978.0,0.25393306]
[1738682704951,0.07636637,98982.0,98981.0,0.151544]
[1738682705161,0.07636637,98982.0,98981.0,0.25392906]
[1738682705592,6.637e-05,98982.0,98981.0,0.25392906]
[1738682705813,0.081,98998.0,98981.0,0.25392906]
[1738682705814,0.06217347,98998.0,98997.0,0.151519]
[1738682706033,0.06264254,98998.0,98997.0,0.25390406]
[1738682706469,0.00046907,98998.0,98997.0,0.27271416]
[1738682708033,0.00046907,98998.0,98997.0,0.29571416]
[1738682708269,0.00046907,98998.0,98997.0,0.47698776]
[1738682708765,0.0001068,99028.0,99020.0,0.151484]
[1738682708999,0.00024774,99021.0,99020.0,0.25386906]
[1738682709494,0.00024774,99021.0,99020.0,0.27686906]
[1738682709740,0.00024774,99021.0,99020.0,0.45810423]
[1738682709970,0.00024774,99021.0,99020.0,0.42686906]
[1738682710652,0.00024774,99021.0,99020.0,0.25386906]
[1738682710866,0.00024774,99021.0,99020.0,0.28265028]
[1738682711083,0.00024774,99021.0,99020.0,0.45565028]
[1738682711348,7.4e-07,99021.0,99020.0,0.45565028]
[1738682711587,0.0001071,99042.0,99034.0,0.301463]
[1738682711828,0.01406624,99035.0,99034.0,0.42684806]
[1738682712048,0.01406624,99035.0,99034.0,0.40384806]
[1738682712286,0.00346624,99035.0,99034.0,0.42265816]
[1738682712522,0.00346624,99035.0,99034.0,0.12119516]
[1738682712523,0.01346624,99035.0,99034.0,0.12119516]
[1738682712755,0.06796624,99035.0,99034.0,0.12119516]
[1738682712988,1.56796624,99035.0,99034.0,0.0188101]
[1738682713223,1.56796624,99035.0,99034.0,0.27265816]
[1738682713467,1.54996624,99035.0,99034.0,0.27265816]
[1738682713687,1.55996624,99035.0,99034.0,0.12119516]
[1738682713926,1.54996624,99035.0,99034.0,0.27265816]
[1738682714157,0.04996624,99035.0,99034.0,0.27265816]
[1738682714381,0.00346624,99035.0,99034.0,0.27265816]
[1738682715274,0.01346624,99035.0,99034.0,0.27265816]
[1738682715492,0.00346624,99035.0,99034.0,0.27265816]
[1738682716147,0.01,99037.0,99034.0,0.12119516]
[1738682716148,0.00257334,99037.0,99034.0,0.12119516]
[1738682716366,0.00257334,99036.0,99035.0,0.25444968]
[1738682716587,0.0001071,99042.0,99041.0,0.151452]
[1738682716813,0.0001071,99042.0,99041.0,0.25444039]
[1738682717042,0.0001071,99042.0,99041.0,0.25383706]
[1738682717319,0.0001071,99042.0,99041.0,0.27683706]
[1738682717536,9e-07,99044.0,99043.0,0.301449]
[1738682717764,9e-07,99044.0,99043.0,0.42683406]
[1738682718009,0.08123188,99084.0,99059.0,0.151424]
[1738682718223,0.00024771,99060.0,99059.0,0.25441118]
[1738682718442,0.00024771,99060.0,99059.0,0.25380906]
[1738682719318,0.00024771,99060.0,99059.0,0.27243591]
[1738682719529,0.00282105,99060.0,99059.0,0.01862685]
[1738682719757,0.20324405,99060.0,99059.0,0.01862685]
[1738682719966,0.28364405,99060.0,99059.0,0.01862685]
[1738682720613,0.43364405,99060.0,99059.0,0.01862685]
[1738682720829,0.00257334,99038.0,99036.0,0.151458]
[1738682721061,0.00257334,99035.0,99029.0,0.08123188]
[1738682721279,0.00257334,99029.0,99022.0,0.15148]
[1738682721500,0.00257334,99029.0,99028.0,0.151472]
[1738682721726,0.1295071,99060.0,99059.0,0.151424]
[1738682721952,0.00257334,99054.0,99029.0,0.000603]
[1738682722175,0.00257334,99031.0,99030.0,0.10238506]
[1738682722455,0.15,99059.0,99004.0,0.08971111]
[1738682722670,0.00257334,99049.0,99048.0,0.151441]
[1738682722888,0.2809301,99060.0,99030.0,0.10238506]
[1738682722889,0.00257334,99045.0,99033.0,0.151464]
[1738682723097,0.00257334,99045.0,99031.0,0.201956]
[1738682723098,0.00257334,99032.0,99031.0,0.151467]
[1738682723317,0.00257334,99052.0,99051.0,0.151437]
[1738682723528,0.00257334,99054.0,99053.0,0.151434]
[1738682723762,0.1295071,99060.0,99059.0,0.151424]
[1738682723980,0.13208044,99060.0,99058.0,0.151425]
[1738682724207,0.12964771,99060.0,99059.0,0.10238506]
[1738682724418,0.13222105,99060.0,99059.0,0.10238506]
[1738682724622,0.12964771,99060.0,99059.0,0.10238506]
[1738682724849,0.00024771,99060.0,99059.0,0.10238506]
[1738682725055,0.00024771,99060.0,99059.0,0.10298751]
[1738682725230,0.00024771,99060.0,99059.0,0.10238506]
[1738682725449,0.00024771,99060.0,99059.0,0.10298797]
[1738682725889,0.00024771,99060.0,99059.0,0.10238506]
[1738682726079,0.00024771,99060.0,99059.0,0.1029875]
[1738682727625,0.00024771,99060.0,99059.0,0.1259875]
[1738682727861,0.000107,99071.0,99059.0,0.1259875]
[1738682727862,7.1e-07,99071.0,99070.0,0.301408]
[1738682728115,7.1e-07,99071.0,99070.0,0.43679306]
[1738682728339,0.0001071,99097.0,99096.0,0.151368]
[1738682728546,0.0005757,99097.0,99096.0,0.42735436]
[1738682728747,7e-07,99097.0,99096.0,0.42675306]
[1738682729596,7e-07,99097.0,99096.0,0.43681845]
[1738682730961,0.08123188,99132.0,99106.0,0.353157]
[1738682731190,0.08123188,99132.0,99128.0,0.151318]
[1738682731420,0.08123188,99132.0,99107.0,0.10298598]
[1738682731421,0.151327,99123.0,99107.0,0.10238506]
[1738682731664,0.00151311,99131.0,99107.0,0.10238506]
[1738682731864,0.15,99126.0,99107.0,0.10238506]
[1738682732088,0.00151335,99125.0,99107.0,0.10238506]
[1738682732334,0.00535383,99125.0,99108.0,0.00060136]
[1738682732553,0.0466,99132.0,99131.0,0.151314]
[1738682732792,0.0466,99132.0,99131.0,0.25369906]
[1738682733011,0.05504685,99132.0,99131.0,0.25369906]
[1738682733214,0.0466,99132.0,99131.0,0.25369906]
[1738682733620,0.0466,99132.0,99131.0,0.10238506]
[1738682734386,0.0466,99132.0,99131.0,0.1029858]
[1738682734595,0.0466,99132.0,99131.0,0.10238506]
[1738682735850,0.00629276,99134.0,99100.0,0.31612694]
[1738682736015,0.00629276,99134.0,99101.0,0.10298591]
[1738682736244,0.00151319,99133.0,99101.0,0.10238506]
[1738682736472,0.31612694,99130.0,99101.0,0.10238506]
[1738682736684,0.00844685,99132.0,99100.0,0.00014058]
[1738682736685,0.15136,99101.0,99100.0,0.00014058]
[1738682736905,1.65136,99101.0,99100.0,0.00014058]
[1738682737132,0.00844685,99101.0,99100.0,0.10252564]
[1738682737364,0.151359,99102.0,99100.0,0.00014058]
[1738682737569,1.50844685,99101.0,99100.0,0.00014058]
[1738682737796,1.65844685,99101.0,99100.0,0.00014058]
[1738682738022,1.50844685,99101.0,99100.0,0.10252564]
[1738682738242,0.00844685,99101.0,99100.0,0.10252564]
[1738682738461,0.31612694,99150.0,99100.0,0.10312734]
[1738682738671,0.151303,99139.0,99102.0,0.25238506]
[1738682738896,0.31623374,99160.0,99133.0,0.151311]
[1738682738897,0.078,99138.0,99133.0,0.151311]
[1738682739114,0.00844685,99134.0,99133.0,0.10238506]
[1738682740141,0.078,99138.0,99134.0,0.15131]
[1738682740372,0.078,99138.0,99134.0,0.25369506]
[1738682740574,0.0827,99156.0,99134.0,0.25369506]
[1738682740772,0.00151278,99155.0,99134.0,0.25369506]
[1738682740978,0.0001068,99160.0,99135.0,0.15]
[1738682740979,6e-07,99144.0,99135.0,0.15]
[1738682741356,6e-07,99144.0,99143.0,0.40368106]
[1738682741542,6e-07,99144.0,99143.0,0.42668106]
[1738682743207,6e-07,99144.0,99143.0,0.40368106]
[1738682743649,6e-07,99144.0,99143.0,0.10238506]
[1738682743851,6e-07,99144.0,99143.0,0.151296]
[1738682744061,6e-07,99144.0,99143.0,0.15189625]
[1738682744929,6e-07,99144.0,99143.0,0.40428131]
[1738682745150,6e-07,99144.0,99143.0,0.10238506]
[1738682745366,6e-07,99144.0,99143.0,0.25368106]
[1738682746910,6e-07,99144.0,99143.0,0.40368106]
[1738682747630,6e-07,99144.0,99143.0,0.42668106]
[1738682749797,0.1001068,99160.0,99159.0,0.301272]
[1738682750006,0.1001068,99160.0,99159.0,0.40365706]
[1738682750215,0.10876235,99160.0,99159.0,0.40365706]
[1738682750447,0.00792135,99160.0,99159.0,0.42665706]
[1738682750656,0.00792135,99160.0,99159.0,0.40365706]
[1738682750882,0.0499,99199.0,99198.0,0.151212]
[1738682750883,0.04641905,99199.0,99198.0,0.151212]
[1738682751095,0.00014047,99171.0,99170.0,0.151255]
[1738682751312,0.00014047,99171.0,99170.0,0.25364006]
[1738682751536,0.00014047,99171.0,99170.0,0.40364006]
[1738682752168,0.00014047,99171.0,99170.0,0.25238506]
[1738682752372,0.07654047,99171.0,99126.0,0.08123188]
[1738682752573,0.15127,99161.0,99138.0,0.10238506]
[1738682752791,0.201679,99167.0,99148.0,0.151287]
[1738682753019,1.50727002,99160.0,99149.0,0.10238506]
[1738682753232,0.00727002,99160.0,99158.0,0.151272]
[1738682753461,0.00727002,99160.0,99159.0,0.10238506]
[1738682753670,1.5,99170.0,99159.0,0.25365606]
[1738682753875,0.197958,99168.0,99160.0,0.151269]
[1738682754084,0.0467,99168.0,99162.0,0.20169]
[1738682754322,0.0467,99168.0,99163.0,0.10238506]
[1738682754524,0.0467,99168.0,99166.0,0.15126]
[1738682754770,0.0467,99168.0,99163.0,0.12106539]
[1738682754983,0.00727002,99167.0,99164.0,0.151264]
[1738682755193,0.00727002,99167.0,99165.0,0.25364706]
[1738682755647,0.00014047,99171.0,99170.0,0.151255]
[1738682755859,0.00014047,99171.0,99170.0,0.25364006]
[1738682756299,0.00014047,99171.0,99170.0,0.10238506]
[1738682756723,0.00014047,99171.0,99170.0,0.10298463]
[1738682756931,0.00014047,99171.0,99170.0,0.10238506]
[1738682757800,0.00014047,99171.0,99170.0,0.10298448]
[1738682757993,0.00014047,99171.0,99170.0,0.10238506]
[1738682758474,0.15139447,99171.0,99164.0,0.151263]
[1738682758656,0.0001066,99168.0,99145.0,0.201723]
[1738682758894,0.0001066,99168.0,99163.0,0.151264]
[1738682759108,0.0001066,99168.0,99167.0,0.151259]
[1738682759318,0.0001066,99168.0,99167.0,0.25364406]
[1738682760187,0.0001066,99168.0,99167.0,0.151259]
[1738682760402,0.0001066,99168.0,99167.0,0.25364406]
[1738682761290,0.0001066,99168.0,99140.0,0.31612694]
[1738682761291,0.0001066,99168.0,99166.0,0.15126]
[1738682761562,0.151259,99167.0,99143.0,0.15]
[1738682761805,0.0015127,99166.0,99145.0,0.201724]
[1738682762052,0.00151268,99165.0,99149.0,0.151286]
[1738682762292,0.00151268,99165.0,99142.0,0.00022386]
[1738682762293,0.201686,99164.0,99142.0,0.00022386]
[1738682762499,0.00151285,99163.0,99142.0,0.00022386]
[1738682762715,0.151296,99143.0,99142.0,0.00022386]
[1738682762927,0.301296,99143.0,99142.0,0.00022386]
[1738682763137,0.31612694,99160.0,99142.0,0.00022386]
[1738682763138,0.1274,99162.0,99142.0,0.00022386]
[1738682763406,0.1274,99162.0,99143.0,0.10238506]
[1738682763620,0.1266,99162.0,99161.0,0.151269]
[1738682763833,0.1266,99162.0,99144.0,0.00060014]
[1738682764046,0.1266,99162.0,99145.0,0.30410806]
[1738682764047,0.00151269,99161.0,99145.0,0.30410806]
[1738682764259,0.151295,99144.0,99142.0,0.00022386]
[1738682764472,0.15151298,99143.0,99142.0,0.00022386]
[1738682764696,0.151333,99119.0,99099.0,0.201818]
[1738682764926,0.25713237,99143.0,99103.0,0.201809]
[1738682764927,0.201775,99120.0,99103.0,0.201809]
[1738682765155,0.00592996,99118.0,99108.0,0.10298652]
[1738682765382,0.23123188,99141.0,99101.0,0.201812]
[1738682765383,0.16,99135.0,99101.0,0.201812]
[1738682765596,0.201745,99135.0,99113.0,0.151342]
[1738682765816,0.15,99131.0,99095.0,0.08910747]
[1738682766030,0.00151346,99130.0,99095.0,0.08910747]
[1738682766243,0.201779,99119.0,99107.0,0.00036444]
[1738682766456,0.151348,99110.0,99107.0,0.00036444]
[1738682766675,0.2032965,99116.0,99107.0,0.00036444]
[1738682766889,0.0816,99108.0,99107.0,0.00036444]
[1738682767359,0.2316,99108.0,99107.0,0.00036444]
[1738682767574,0.1051,99094.0,99055.0,0.08910747]
[1738682767792,0.2803,99056.0,99055.0,0.08910747]
[1738682768004,0.301449,99043.0,99000.0,0.08123188]
[1738682768452,0.151475,99026.0,98968.0,0.01]
[1738682768662,0.151483,99021.0,99008.0,0.30438806]
[1738682768907,0.00151485,99025.0,99008.0,0.10238506]
[1738682769122,0.32351035,99020.0,98965.0,0.040408]
[1738682769334,1.5,99029.0,99007.0,0.00069246]
[1738682769542,0.00586856,99019.0,99007.0,0.00069246]
[1738682769766,0.00586856,99019.0,99008.0,0.10238506]
[1738682769991,1.5,99029.0,99007.0,0.00069246]
[1738682769992,0.08123188,99028.0,99007.0,0.00069246]
[1738682770243,1.5,99029.0,99007.0,0.00069246]
[1738682770244,0.151487,99018.0,99009.0,0.10238506]
[1738682770493,0.151479,99024.0,99010.0,0.151499]
[1738682770745,0.08123188,99040.0,99011.0,0.10238506]
[1738682770978,1.70345486,99039.0,99011.0,0.10238506]
[1738682771215,0.00586856,99039.0,99013.0,0.201993]
[1738682771461,0.00586856,99039.0,99008.0,0.00022386]
[1738682771462,0.151459,99037.0,99022.0,0.15148]
[1738682771659,0.0015147,99036.0,99014.0,0.10238506]
[1738682771932,0.15148,99023.0,99014.0,0.10238506]
[1738682772174,0.151489,99017.0,99008.0,0.00022386]
[1738682772397,0.1515,99010.0,99008.0,0.00022386]
[1738682773035,0.00459324,99009.0,99008.0,0.00022386]
[1738682773243,0.00459324,99009.0,99008.0,0.15172586]
[1738682773463,0.00091058,99031.0,99008.0,0.10260892]
[1738682773674,0.08123188,99022.0,99008.0,0.00022386]
[1738682773886,0.00091058,99021.0,99009.0,0.10238506]
[1738682774092,0.151487,99019.0,99009.0,0.25388506]
[1738682774304,0.06961514,99040.0,99009.0,0.10238506]
[1738682774514,0.06961514,99040.0,99010.0,0.201999]
[1738682774515,0.00459324,99020.0,99010.0,0.201999]
[1738682774723,0.151468,99031.0,99019.0,0.151485]
[1738682774940,0.06961514,99040.0,99020.0,0.10238506]
[1738682775164,0.00459324,99030.0,99024.0,0.151477]
[1738682775371,0.201942,99038.0,99020.0,0.25386806]
[1738682775639,0.32612694,99060.0,99020.0,0.25386806]
[1738682775640,0.00459324,99029.0,99021.0,0.20318878]
[1738682775842,0.151448,99044.0,99022.0,0.10238506]
[1738682776053,0.201916,99052.0,99031.0,0.201954]
[1738682776267,0.23123188,99055.0,99002.0,0.352014]
[1738682776268,0.08123188,99055.0,99032.0,0.10238506]
[1738682776556,0.08123188,99055.0,99032.0,0.10359669]
[1738682776811,0.08639692,99080.0,99049.0,0.15]
[1738682777016,0.08639692,99080.0,99047.0,0.10238506]
[1738682777017,0.151393,99080.0,99050.0,0.00121114]
[1738682777231,0.151392,99080.0,99051.0,0.00121111]
[1738682777447,0.201838,99090.0,99059.0,0.15]
[1738682777659,0.16183188,99091.0,99060.0,0.10359616]
[1738682777865,0.151388,99084.0,99073.0,0.151403]
[1738682778079,0.16183188,99091.0,99074.0,0.25378606]
[1738682778293,0.00091058,99090.0,99074.0,0.10238506]
[1738682778502,0.00091058,99092.0,99075.0,0.201867]
[1738682778716,0.08639692,99097.0,99076.0,0.10238506]
[1738682778928,0.08639692,99097.0,99096.0,0.15]
[1738682779365,0.08639692,99097.0,99096.0,0.15121069]
[1738682779598,0.08639692,99097.0,99096.0,0.17421069]
[1738682779836,9.2e-07,99097.0,99096.0,0.28659575]
[1738682780055,0.08123188,99141.0,99128.0,0.301319]
[1738682780289,0.08123188,99141.0,99128.0,0.40370406]
[1738682780497,0.00014042,99129.0,99128.0,0.40370406]
[1738682780926,9.2e-07,99157.0,99156.0,0.151276]
[1738682781151,9.2e-07,99157.0,99156.0,0.2548711]
[1738682781363,9.2e-07,99157.0,99156.0,0.40366106]
[1738682782448,9.2e-07,99157.0,99156.0,0.25366106]
[1738682782658,9.2e-07,99157.0,99156.0,0.10238506]
[1738682782877,0.20167,99172.0,99156.0,0.10238506]
[1738682783084,0.00024707,99168.0,99157.0,0.10238506]
[1738682783301,0.00457993,99167.0,99161.0,0.151268]
[1738682783491,0.00024707,99168.0,99146.0,0.201722]
[1738682783622,0.00024707,99168.0,99148.0,0.15]
[1738682783846,0.00024707,99168.0,99149.0,0.1035952]
[1738682784050,0.00024707,99168.0,99166.0,0.151261]
[1738682784247,0.00024707,99168.0,99110.0,0.31612694]
[1738682784458,0.00024707,99168.0,99166.0,0.151261]
[1738682784665,0.00024707,99168.0,99167.0,0.25359502]
[1738682785062,0.00024707,99168.0,99167.0,0.25238506]
[1738682785689,0.00124707,99168.0,99167.0,0.25238506]
[1738682785875,0.151216,99196.0,99181.0,0.201651]
[1738682786085,0.08123188,99192.0,99182.0,0.10238506]
[1738682786341,0.08123188,99192.0,99120.0,0.416868]
[1738682786342,0.00091058,99191.0,99168.0,0.151257]
[1738682786567,0.00091058,99191.0,99141.0,0.08123188]
[1738682786568,0.001,99168.0,99141.0,0.08123188]
[1738682786779,0.001,99168.0,99167.0,0.151259]
[1738682786987,0.201649,99182.0,99158.0,0.201697]
[1738682787194,0.0046997,99168.0,99150.0,0.201714]
[1738682787443,0.00091058,99187.0,99151.0,0.00121004]
[1738682787704,1.5,99179.0,99151.0,0.00121004]
[1738682787976,1.5,99179.0,99177.0,0.151244]
[1738682788407,0.151265,99164.0,99152.0,0.151282]
[1738682788619,0.00091058,99172.0,99133.0,0.201747]
[1738682788838,0.00091058,99172.0,99134.0,0.00121016]
[1738682789043,1.5,99155.0,99154.0,0.09738506]
[1738682789245,1.5,99155.0,99136.0,0.15]
[1738682789446,1.50510469,99155.0,99149.0,0.201714]
[1738682789655,1.50510469,99155.0,99141.0,0.201732]
[1738682790085,1.50510469,99155.0,99128.0,0.201757]
[1738682790086,0.151282,99153.0,99128.0,0.201757]
[1738682790310,0.151282,99153.0,99100.0,0.31612694]
[1738682790528,0.10834013,99152.0,99124.0,0.151324]
[1738682790736,0.10834013,99152.0,99133.0,0.151311]
[1738682790737,0.00504449,99152.0,99133.0,0.151311]
[1738682790942,1.50595507,99152.0,99124.0,0.201766]
[1738682791149,1.50504449,99152.0,99125.0,0.08123188]
[1738682791354,0.151289,99148.0,99138.0,0.151304]
[1738682791565,0.00590007,99151.0,99139.0,0.10238506]
[1738682791786,0.15128,99154.0,99142.0,0.151297]
[1738682791971,0.00498949,99150.0,99139.0,0.10238506]
[1738682792178,0.151289,99148.0,99139.0,0.10238506]
[1738682792393,0.00091058,99147.0,99080.0,0.32612694]
[1738682792603,0.00091058,99147.0,99128.0,0.151318]
[1738682792804,0.151306,99137.0,99129.0,0.10238506]
[1738682793014,0.15,99159.0,99129.0,0.30414106]
[1738682793223,0.00378949,99136.0,99135.0,0.151308]
[1738682793435,0.01014088,99164.0,99135.0,0.10238506]
[1738682793645,0.201163,99165.0,99137.0,0.756528]
[1738682793856,0.00478949,99163.0,99139.0,0.353038]
[1738682794068,0.151263,99165.0,99155.0,0.151277]
[1738682794291,0.00570007,99162.0,99140.0,0.10238506]
[1738682794498,0.08623494,99167.0,99154.0,0.151279]
[1738682794712,0.151251,99173.0,99163.0,0.151265]
[1738682794923,0.151251,99173.0,99162.0,0.151266]
[1738682794924,0.16097223,99173.0,99162.0,0.151266]
[1738682795129,0.00478949,99166.0,99161.0,0.151268]
[1738682795338,0.20646049,99172.0,99155.0,0.201704]
[1738682795567,0.151253,99171.0,99155.0,0.10238506]
[1738682795780,0.15216658,99170.0,99155.0,0.10238506]
[1738682795993,0.00483036,99170.0,99155.0,0.10238506]
[1738682796222,0.00483036,99170.0,99155.0,0.25366106]
[1738682796422,0.151261,99167.0,99155.0,0.25366106]
[1738682796640,0.00483036,99170.0,99155.0,0.10238506]
[1738682796861,0.00014039,99173.0,99139.0,0.201736]
[1738682796862,0.00014039,99173.0,99156.0,0.10359521]
[1738682797072,0.00483036,99169.0,99168.0,0.151257]
[1738682797243,0.00014039,99173.0,99168.0,0.25364206]
[1738682797471,0.00014039,99173.0,99155.0,0.1]
[1738682797705,0.00014039,99173.0,99164.0,0.08123188]
[1738682797858,0.00014039,99173.0,99165.0,0.10238506]
[1738682798030,0.00014039,99173.0,99166.0,0.20168]
[1738682798239,0.00014039,99173.0,99172.0,0.151252]
[1738682799302,0.00014039,99173.0,99172.0,0.25363706]
[1738682799522,0.00014039,99173.0,99172.0,0.151252]
[1738682800138,0.00014039,99173.0,99167.0,0.151258]
[1738682800357,0.151253,99171.0,99161.0,0.151267]
[1738682800586,0.00014039,99173.0,99164.0,0.151264]
[1738682800819,0.00105097,99173.0,99138.0,0.201738]
[1738682801058,0.00014039,99173.0,99157.0,0.15]
[1738682801278,0.00014039,99173.0,99171.0,0.151253]
[1738682801713,0.00014039,99173.0,99171.0,0.25363806]
[1738682802140,0.00014039,99173.0,99140.0,0.201734]
[1738682802349,0.00014039,99173.0,99158.0,0.201698]
[1738682802545,0.00014039,99173.0,99171.0,0.151253]
[1738682802755,0.00014039,99173.0,99159.0,0.10238506]
[1738682802963,0.00014039,99173.0,99171.0,0.151253]
[1738682803185,0.00014039,99173.0,99172.0,0.10359506]
[1738682803829,0.00014039,99173.0,99172.0,0.25359506]
[1738682804035,0.00014039,99173.0,99172.0,0.25238506]
[1738682804234,3.9e-07,99173.0,99172.0,0.27538506]
[1738682804443,0.0035351,99219.0,99218.0,0.151182]
[1738682804694,0.00400353,99219.0,99218.0,0.25356706]
[1738682804914,0.00400353,99219.0,99218.0,0.40356706]
[1738682805164,5.3e-07,99219.0,99218.0,0.40356706]
[1738682805348,5e-07,99241.0,99231.0,0.301162]
[1738682805567,0.00014094,99241.0,99240.0,0.151148]
[1738682805792,0.00014094,99241.0,99240.0,0.301148]